[Event "*** Titled Tuesday Blitz"]
[Site "Chess.com"]
[Date "2021.04.06"]
[Round "5"]
[White "kai_nov"]
[Black "lucachess49"]
[Result "1-0"]
[WhiteElo "2275"]
[BlackElo "2419"]
[TimeControl "180+1"]
[EndTime "10:57:53 PDT"]
[Termination "kai_nov won by resignation"]

1. d4 {[%clk 0:03:00.9]} 1... Nf6 {[%clk 0:02:58.1]} 2. c4 {[%clk 0:03:00.4]}
2... e6 {[%clk 0:02:57.2]} 3. Nc3 {[%clk 0:03:00.1]} 3... Bb4 {[%clk 0:02:55.4]}
4. f3 {[%clk 0:02:59.9]} 4... O-O {[%clk 0:02:55.3]} 5. e4 {[%clk 0:02:59.1]}
5... c5 {[%clk 0:02:55.3]} 6. d5 {[%clk 0:02:53]} 6... d6 {[%clk 0:02:53.9]} 7.
Ne2 {[%clk 0:02:49.5]} 7... b5 {[%clk 0:02:52.8]} 8. a3 {[%clk 0:02:44.5]} 8...
Ba5 {[%clk 0:02:51.2]} 9. dxe6 {[%clk 0:02:42]} 9... Bxe6 {[%clk 0:02:50.3]} 10.
cxb5 {[%clk 0:02:39.3]} 10... d5 {[%clk 0:02:46.3]} 11. exd5 {[%clk 0:02:37.2]}
11... Nxd5 {[%clk 0:02:46.2]} 12. Kf2 {[%clk 0:02:33.1]} 12... Nxc3 {[%clk
0:01:48.7]} 13. Qxd8 {[%clk 0:02:25.3]} 13... Ne4+ {[%clk 0:01:36.4]} 14. fxe4
{[%clk 0:02:24.9]} 14... Rxd8 {[%clk 0:01:36.5]} 15. Be3 {[%clk 0:02:23.4]}
15... Nd7 {[%clk 0:01:35.6]} 16. Nf4 {[%clk 0:02:11.4]} 16... Bb3 {[%clk
0:01:33.4]} 17. Rc1 {[%clk 0:01:50.9]} 17... Nf6 {[%clk 0:01:31.2]} 18. Kf3
{[%clk 0:01:39.6]} 18... g5 {[%clk 0:01:29.3]} 19. Nd3 {[%clk 0:01:23.6]} 19...
g4+ {[%clk 0:01:20.9]} 20. Kf4 {[%clk 0:01:09.6]} 20... Bc7+ {[%clk 0:01:12.5]}
21. Kf5 {[%clk 0:01:09.1]} 21... Kg7 {[%clk 0:00:57.3]} 22. Nxc5 {[%clk
0:01:01]} 22... Re8 {[%clk 0:00:54.9]} 23. Bd4 {[%clk 0:01:00.9]} 23... Be6+
{[%clk 0:00:51.4]} 24. Nxe6+ {[%clk 0:00:45.8]} 24... fxe6+ {[%clk 0:00:51.5]}
25. Kg5 {[%clk 0:00:43.2]} 25... Bd8 {[%clk 0:00:50.5]} 26. Bxf6+ {[%clk
0:00:39.4]} 26... Bxf6+ {[%clk 0:00:50.3]} 27. Kxg4 {[%clk 0:00:39.7]} 27...
Bxb2 {[%clk 0:00:47.5]} 28. Rc7+ {[%clk 0:00:39.2]} 28... Kg6 {[%clk 0:00:44.4]}
29. Bd3 {[%clk 0:00:36.6]} 29... Be5 {[%clk 0:00:42.9]} 30. Rc5 {[%clk
0:00:32.7]} 30... h5+ {[%clk 0:00:41.9]} 31. Kh3 {[%clk 0:00:31.6]} 31... Bd4
{[%clk 0:00:39.6]} 32. Rc6 {[%clk 0:00:25.5]} 32... Rad8 {[%clk 0:00:39.1]} 33.
Rf1 {[%clk 0:00:23.9]} 33... Be5 {[%clk 0:00:37.5]} 34. Bc2 {[%clk 0:00:22.9]}
34... Rd2 {[%clk 0:00:34.8]} 35. Rc5 {[%clk 0:00:20.9]} 35... Bd6 {[%clk
0:00:29.8]} 36. e5+ {[%clk 0:00:20.4]} 36... Rxc2 {[%clk 0:00:17.1]} 37. Rxc2
{[%clk 0:00:19.6]} 37... Bxa3 {[%clk 0:00:16.4]} 38. Rc7 {[%clk 0:00:16.8]}
38... Rd8 {[%clk 0:00:12.4]} 39. Rxa7 {[%clk 0:00:15.6]} 39... Rd3+ {[%clk
0:00:12.2]} 40. g3 {[%clk 0:00:15.3]} 40... Bc5 {[%clk 0:00:11.9]} 41. Ra6
{[%clk 0:00:14.4]} 41... Rd2 {[%clk 0:00:10.2]} 42. Rxe6+ {[%clk 0:00:14.3]}
42... Kg5 {[%clk 0:00:10.8]} 43. Ref6 {[%clk 0:00:13.4]} 1-0

[Event "*** Titled Tuesday Blitz"]
[Site "Chess.com"]
[Date "2021.04.06"]
[Round "5"]
[White "muchojogo"]
[Black "lagedema"]
[Result "1/2-1/2"]
[WhiteElo "2447"]
[BlackElo "2596"]
[TimeControl "180+1"]
[EndTime "10:57:55 PDT"]
[Termination "Game drawn by repetition"]

1. d4 {[%clk 0:03:00.9]} 1... Nf6 {[%clk 0:02:57]} 2. Bf4 {[%clk 0:03:01.4]}
2... e6 {[%clk 0:02:55.8]} 3. e3 {[%clk 0:03:02]} 3... d5 {[%clk 0:02:56.3]} 4.
c3 {[%clk 0:03:01.1]} 4... Bd6 {[%clk 0:02:56.4]} 5. Bg3 {[%clk 0:03:00.7]} 5...
b6 {[%clk 0:02:55.9]} 6. Nd2 {[%clk 0:03:00.9]} 6... c5 {[%clk 0:02:56.2]} 7.
Ngf3 {[%clk 0:03:00.7]} 7... O-O {[%clk 0:02:55.3]} 8. Bd3 {[%clk 0:03:00.8]}
8... Ba6 {[%clk 0:02:55.3]} 9. Bxa6 {[%clk 0:02:52.4]} 9... Nxa6 {[%clk
0:02:56.2]} 10. Bxd6 {[%clk 0:02:46.6]} 10... Qxd6 {[%clk 0:02:55.3]} 11. Ne5
{[%clk 0:02:47.5]} 11... Qc7 {[%clk 0:02:55.2]} 12. O-O {[%clk 0:02:38]} 12...
Rad8 {[%clk 0:02:47.3]} 13. f4 {[%clk 0:02:34.5]} 13... Qb7 {[%clk 0:02:46.5]}
14. g4 {[%clk 0:02:31.7]} 14... Nc7 {[%clk 0:02:44.9]} 15. g5 {[%clk 0:02:31.5]}
15... Ne4 {[%clk 0:02:45.1]} 16. Nxe4 {[%clk 0:02:30.8]} 16... dxe4 {[%clk
0:02:46]} 17. Qh5 {[%clk 0:02:20.8]} 17... Nd5 {[%clk 0:02:45.2]} 18. Rae1
{[%clk 0:02:14.3]} 18... f6 {[%clk 0:02:44.8]} 19. gxf6 {[%clk 0:02:01.5]} 19...
gxf6 {[%clk 0:02:45.7]} 20. Ng4 {[%clk 0:02:01.4]} 20... Kh8 {[%clk 0:02:27.7]}
21. Kh1 {[%clk 0:02:01.2]} 21... cxd4 {[%clk 0:02:24.9]} 22. exd4 {[%clk
0:02:00.2]} 22... Ne7 {[%clk 0:02:04.1]} 23. Ne3 {[%clk 0:01:52.1]} 23... f5
{[%clk 0:02:03.1]} 24. Rg1 {[%clk 0:01:48.1]} 24... Nd5 {[%clk 0:01:58.9]} 25.
Nxd5 {[%clk 0:01:45.4]} 25... exd5 {[%clk 0:01:58.2]} 26. Re3 {[%clk 0:01:42.8]}
26... Qf7 {[%clk 0:01:53.8]} 27. Qh6 {[%clk 0:01:31.1]} 27... Qf6 {[%clk
0:01:48.8]} 28. Qh5 {[%clk 0:01:15.3]} 28... Rg8 {[%clk 0:01:46]} 29. Rgg3
{[%clk 0:01:11.7]} 29... Rxg3 {[%clk 0:01:46.2]} 30. hxg3 {[%clk 0:01:10.6]}
30... b5 {[%clk 0:01:42.8]} 31. Qe2 {[%clk 0:01:05.2]} 31... a6 {[%clk
0:01:41.7]} 32. Kg2 {[%clk 0:01:03.5]} 32... Rg8 {[%clk 0:01:36.3]} 33. Qh5
{[%clk 0:01:00.8]} 33... Qg6 {[%clk 0:01:32]} 34. Qh4 {[%clk 0:00:57.7]} 34...
h5 {[%clk 0:01:30.7]} 35. Kf2 {[%clk 0:00:56]} 35... Kh7 {[%clk 0:01:30.2]} 36.
Re1 {[%clk 0:00:55.2]} 36... Qg4 {[%clk 0:01:25.2]} 37. Qxg4 {[%clk 0:00:51.1]}
37... Rxg4 {[%clk 0:01:21.2]} 38. Rh1 {[%clk 0:00:48.6]} 38... Kg6 {[%clk
0:01:21]} 39. Rh4 {[%clk 0:00:39.9]} 39... a5 {[%clk 0:01:01.1]} 40. b4 {[%clk
0:00:38]} 40... a4 {[%clk 0:00:57.1]} 41. Rxg4+ {[%clk 0:00:37.3]} 41... fxg4
{[%clk 0:00:58]} 42. Ke2 {[%clk 0:00:26.4]} 42... Kf5 {[%clk 0:00:57.6]} 43. Ke3
{[%clk 0:00:26.5]} 43... Ke6 {[%clk 0:00:53.7]} 44. Ke2 {[%clk 0:00:23.8]} 44...
Kf6 {[%clk 0:00:51.4]} 45. Kf2 {[%clk 0:00:23.6]} 45... Kf5 {[%clk 0:00:16.7]}
46. Ke3 {[%clk 0:00:23.5]} 46... Ke6 {[%clk 0:00:15.2]} 47. Ke2 {[%clk
0:00:22.8]} 47... Kf7 {[%clk 0:00:15.2]} 48. Kf2 {[%clk 0:00:22.7]} 48... Kg7
{[%clk 0:00:15.7]} 49. Ke2 {[%clk 0:00:22.8]} 49... Kg6 {[%clk 0:00:15.9]} 50.
Kf2 {[%clk 0:00:23.3]} 50... Kf5 {[%clk 0:00:11.3]} 51. Ke3 {[%clk 0:00:22.6]}
1/2-1/2

[Event "*** Titled Tuesday Blitz"]
[Site "Chess.com"]
[Date "2021.04.06"]
[Round "5"]
[White "Oleksandr_Bortnyk"]
[Black "Kobalia"]
[Result "1-0"]
[WhiteElo "2949"]
[BlackElo "2772"]
[TimeControl "180+1"]
[EndTime "10:57:56 PDT"]
[Termination "Oleksandr_Bortnyk won on time"]

1. d4 {[%clk 0:03:00.9]} 1... d5 {[%clk 0:02:58.9]} 2. Nc3 {[%clk 0:03:01.4]}
2... Bf5 {[%clk 0:02:57.3]} 3. Bf4 {[%clk 0:03:01.8]} 3... a6 {[%clk 0:02:46.9]}
4. e3 {[%clk 0:03:02.2]} 4... Nf6 {[%clk 0:02:47]} 5. Nf3 {[%clk 0:03:02.8]}
5... Nbd7 {[%clk 0:02:40.8]} 6. Be2 {[%clk 0:02:58.2]} 6... e6 {[%clk
0:02:40.1]} 7. a3 {[%clk 0:02:48.7]} 7... Bd6 {[%clk 0:02:39.4]} 8. Ne5 {[%clk
0:02:49.2]} 8... h6 {[%clk 0:02:36.1]} 9. Bf3 {[%clk 0:02:40.3]} 9... Qe7 {[%clk
0:02:29.6]} 10. Qe2 {[%clk 0:02:32.3]} 10... c5 {[%clk 0:02:20.7]} 11. g4 {[%clk
0:02:29.4]} 11... Bh7 {[%clk 0:02:18.8]} 12. h4 {[%clk 0:02:26.3]} 12... Ne4
{[%clk 0:02:11.8]} 13. Bxe4 {[%clk 0:02:26.6]} 13... Bxe4 {[%clk 0:02:02.5]} 14.
Nxe4 {[%clk 0:02:20.1]} 14... dxe4 {[%clk 0:02:03.4]} 15. Nxd7 {[%clk
0:01:55.2]} 15... Qxd7 {[%clk 0:02:04.3]} 16. Bxd6 {[%clk 0:01:37]} 16... Qxd6
{[%clk 0:02:05.2]} 17. O-O-O {[%clk 0:01:37.7]} 17... Rc8 {[%clk 0:01:52.4]} 18.
dxc5 {[%clk 0:01:31.9]} 18... Qxc5 {[%clk 0:01:51.7]} 19. Rd4 {[%clk 0:01:32.5]}
19... O-O {[%clk 0:01:48.7]} 20. g5 {[%clk 0:01:33]} 20... hxg5 {[%clk
0:01:38.5]} 21. hxg5 {[%clk 0:01:33.9]} 21... Qxg5 {[%clk 0:01:38.4]} 22. Rxe4
{[%clk 0:01:31.8]} 22... Rfd8 {[%clk 0:01:34.6]} 23. Reh4 {[%clk 0:01:22.1]}
23... Kf8 {[%clk 0:01:33.7]} 24. Qf3 {[%clk 0:01:16.8]} 24... Qf5 {[%clk
0:00:59.2]} 25. Qe2 {[%clk 0:00:28.5]} 25... Ke7 {[%clk 0:00:57]} 26. Kb1 {[%clk
0:00:20.6]} 26... Rc5 {[%clk 0:00:55]} 27. Rh5 {[%clk 0:00:14.1]} 27... g5
{[%clk 0:00:54.3]} 28. f4 {[%clk 0:00:11.2]} 28... Rdc8 {[%clk 0:00:48.7]} 29.
Rc1 {[%clk 0:00:10.1]} 29... Qg6 {[%clk 0:00:44.5]} 30. Rh2 {[%clk 0:00:06.5]}
30... g4 {[%clk 0:00:37.7]} 31. e4 {[%clk 0:00:06.4]} 31... Rc4 {[%clk
0:00:33.3]} 32. f5 {[%clk 0:00:05.9]} 32... Qg5 {[%clk 0:00:33.5]} 33. Rg2
{[%clk 0:00:05.4]} 33... exf5 {[%clk 0:00:20.4]} 34. exf5+ {[%clk 0:00:04.3]}
34... Kf8 {[%clk 0:00:20.8]} 35. Qe5 {[%clk 0:00:03.8]} 35... f6 {[%clk
0:00:16.9]} 36. Qd6+ {[%clk 0:00:04.2]} 36... Kg8 {[%clk 0:00:14.1]} 37. Qe6+
{[%clk 0:00:04.6]} 37... Kf8 {[%clk 0:00:13.8]} 38. Rh2 {[%clk 0:00:04.8]} 38...
Qg7 {[%clk 0:00:10.7]} 39. Rch1 {[%clk 0:00:04.4]} 1-0

[Event "*** Titled Tuesday Blitz"]
[Site "Chess.com"]
[Date "2021.04.06"]
[Round "5"]
[White "Kostya_Nikologorskiy"]
[Black "Dinamo3"]
[Result "1-0"]
[WhiteElo "2682"]
[BlackElo "2488"]
[TimeControl "180+1"]
[EndTime "10:57:59 PDT"]
[Termination "Kostya_Nikologorskiy won by resignation"]

1. d4 {[%clk 0:03:00.9]} 1... d6 {[%clk 0:02:46.8]} 2. e4 {[%clk 0:02:57.7]}
2... Nf6 {[%clk 0:02:46.6]} 3. Nc3 {[%clk 0:02:58.2]} 3... e5 {[%clk 0:02:47.3]}
4. Nf3 {[%clk 0:02:47.9]} 4... Nbd7 {[%clk 0:02:47.3]} 5. Bc4 {[%clk 0:02:47.7]}
5... Be7 {[%clk 0:02:47.3]} 6. O-O {[%clk 0:02:14.9]} 6... O-O {[%clk 0:02:47]}
7. h3 {[%clk 0:02:13.4]} 7... c6 {[%clk 0:02:46.7]} 8. a4 {[%clk 0:02:12.5]}
8... Qc7 {[%clk 0:02:47.1]} 9. Be3 {[%clk 0:02:11.2]} 9... Re8 {[%clk
0:02:41.4]} 10. Ng5 {[%clk 0:02:06.8]} 10... Rf8 {[%clk 0:02:41.8]} 11. f4
{[%clk 0:02:05.5]} 11... h6 {[%clk 0:02:36.1]} 12. Nxf7 {[%clk 0:01:56.3]} 12...
Rxf7 {[%clk 0:02:33.1]} 13. Bxf7+ {[%clk 0:01:46.2]} 13... Kxf7 {[%clk 0:02:33]}
14. fxe5 {[%clk 0:01:47.1]} 14... dxe5 {[%clk 0:02:33.1]} 15. Qh5+ {[%clk
0:01:38.5]} 15... Kg8 {[%clk 0:02:31]} 16. Qg6 {[%clk 0:01:38.8]} 16... Nf8
{[%clk 0:02:26.4]} 17. Qg3 {[%clk 0:01:37.6]} 17... Nh5 {[%clk 0:02:15]} 18. Qf3
{[%clk 0:01:28]} 18... Nf6 {[%clk 0:02:12.3]} 19. Qg3 {[%clk 0:01:24.9]} 19...
Kh7 {[%clk 0:01:28.5]} 20. Rad1 {[%clk 0:01:21.7]} 20... Be6 {[%clk 0:01:14.1]}
21. dxe5 {[%clk 0:01:16.3]} 21... Nh5 {[%clk 0:01:10.7]} 22. Qf3 {[%clk
0:01:04.9]} 22... Qxe5 {[%clk 0:01:09.5]} 23. Bd4 {[%clk 0:01:04]} 23... Qg5
{[%clk 0:01:05.4]} 24. Be3 {[%clk 0:01:04.1]} 24... Qg6 {[%clk 0:01:03.2]} 25.
Ne2 {[%clk 0:01:02.2]} 25... Nd7 {[%clk 0:00:57.5]} 26. Bd4 {[%clk 0:00:51.6]}
26... Rf8 {[%clk 0:00:56]} 27. Qd3 {[%clk 0:00:47.7]} 27... Rxf1+ {[%clk
0:00:45.2]} 28. Rxf1 {[%clk 0:00:48.6]} 28... Bg5 {[%clk 0:00:40.3]} 29. b4
{[%clk 0:00:42]} 29... Bf6 {[%clk 0:00:36.1]} 30. Bxf6 {[%clk 0:00:37.3]} 30...
Ndxf6 {[%clk 0:00:28]} 31. e5 {[%clk 0:00:37.8]} 31... Qxd3 {[%clk 0:00:27.2]}
32. cxd3 {[%clk 0:00:38.7]} 32... Nd5 {[%clk 0:00:27.6]} 33. b5 {[%clk
0:00:38.3]} 33... cxb5 {[%clk 0:00:27.3]} 34. axb5 {[%clk 0:00:39.2]} 34... g5
{[%clk 0:00:24.9]} 35. Ra1 {[%clk 0:00:38.4]} 35... a6 {[%clk 0:00:14.8]} 36.
bxa6 {[%clk 0:00:38.2]} 36... bxa6 {[%clk 0:00:15.7]} 37. Rxa6 {[%clk
0:00:38.7]} 37... Bf5 {[%clk 0:00:16.3]} 38. Rd6 {[%clk 0:00:28.4]} 38... Ndf4
{[%clk 0:00:16.5]} 39. Nxf4 {[%clk 0:00:27.6]} 39... Nxf4 {[%clk 0:00:17.4]} 40.
d4 {[%clk 0:00:28.2]} 40... Kg7 {[%clk 0:00:17.3]} 41. Kf2 {[%clk 0:00:26]}
41... h5 {[%clk 0:00:17.7]} 42. Kf3 {[%clk 0:00:22.7]} 42... h4 {[%clk
0:00:17.1]} 43. d5 {[%clk 0:00:20.6]} 43... Nd3 {[%clk 0:00:15.3]} 44. e6 {[%clk
0:00:20.3]} 44... Kf6 {[%clk 0:00:15.4]} 45. Ke3 {[%clk 0:00:18.6]} 45... Ne5
{[%clk 0:00:15.4]} 46. Ra6 {[%clk 0:00:18.5]} 46... Ke7 {[%clk 0:00:13.6]} 47.
Kd4 {[%clk 0:00:18.9]} 47... Nd3 {[%clk 0:00:13.2]} 48. Ra7+ {[%clk 0:00:19.1]}
48... Kf6 {[%clk 0:00:13.1]} 49. Rf7+ {[%clk 0:00:19.7]} 49... Kg6 {[%clk
0:00:13.3]} 50. Rxf5 {[%clk 0:00:20.4]} 50... Kxf5 {[%clk 0:00:13.4]} 51. Kxd3
{[%clk 0:00:20.9]} 51... Ke5 {[%clk 0:00:13.4]} 52. e7 {[%clk 0:00:20.9]} 1-0

[Event "*** Titled Tuesday Blitz"]
[Site "Chess.com"]
[Date "2021.04.06"]
[Round "5"]
[White "andrewtnb"]
[Black "2008king"]
[Result "1-0"]
[WhiteElo "2358"]
[BlackElo "2212"]
[TimeControl "180+1"]
[EndTime "10:58:00 PDT"]
[Termination "andrewtnb won by checkmate"]

1. d4 {[%clk 0:02:56.7]} 1... d5 {[%clk 0:02:59]} 2. c4 {[%clk 0:02:52]} 2... c6
{[%clk 0:02:59.1]} 3. cxd5 {[%clk 0:02:51.4]} 3... cxd5 {[%clk 0:03:00]} 4. Nf3
{[%clk 0:02:51.5]} 4... Nf6 {[%clk 0:03:00.1]} 5. Nc3 {[%clk 0:02:52.1]} 5...
Nc6 {[%clk 0:02:59.6]} 6. Bf4 {[%clk 0:02:52.1]} 6... Bf5 {[%clk 0:02:58.5]} 7.
e3 {[%clk 0:02:52]} 7... Rc8 {[%clk 0:02:57.2]} 8. Bb5 {[%clk 0:02:47.3]} 8...
a6 {[%clk 0:02:55.4]} 9. Bxc6+ {[%clk 0:02:47.4]} 9... Rxc6 {[%clk 0:02:55.1]}
10. Ne5 {[%clk 0:02:48.1]} 10... Rc8 {[%clk 0:02:54.5]} 11. Rc1 {[%clk
0:02:44.9]} 11... b5 {[%clk 0:02:35.2]} 12. g4 {[%clk 0:02:30.3]} 12... Bg6
{[%clk 0:02:04.6]} 13. h4 {[%clk 0:02:29.4]} 13... h5 {[%clk 0:01:57.3]} 14. g5
{[%clk 0:02:19.2]} 14... Nd7 {[%clk 0:01:57.2]} 15. Nxg6 {[%clk 0:02:03.6]}
15... fxg6 {[%clk 0:01:58.1]} 16. Nxd5 {[%clk 0:02:00.7]} 16... e5 {[%clk
0:01:48.1]} 17. Rxc8 {[%clk 0:01:39.7]} 17... Qxc8 {[%clk 0:01:47.2]} 18. Bxe5
{[%clk 0:01:38.4]} 18... Nxe5 {[%clk 0:01:42.8]} 19. dxe5 {[%clk 0:01:39.3]}
19... Qc4 {[%clk 0:01:36.4]} 20. Qd4 {[%clk 0:01:19]} 20... Qc1+ {[%clk
0:01:31.3]} 21. Ke2 {[%clk 0:00:44.3]} 21... Qc2+ {[%clk 0:01:17]} 22. Kf1
{[%clk 0:00:40]} 22... Bc5 {[%clk 0:00:53.4]} 23. Nc7+ {[%clk 0:00:38.9]} 23...
Ke7 {[%clk 0:00:50.8]} 24. Qd5 {[%clk 0:00:35.5]} 24... Rd8 {[%clk 0:00:44.6]}
25. Qb7 {[%clk 0:00:17.3]} 25... Rd1+ {[%clk 0:00:27.5]} 26. Kg2 {[%clk
0:00:17]} 26... Rd7 {[%clk 0:00:28.4]} 27. Nd5+ {[%clk 0:00:13]} 27... Ke8
{[%clk 0:00:24]} 28. Qc8+ {[%clk 0:00:12.5]} 28... Rd8 {[%clk 0:00:23.6]} 29.
Qe6+ {[%clk 0:00:12]} 29... Kf8 {[%clk 0:00:24.1]} 30. Nf4 {[%clk 0:00:11.4]}
30... Qe4+ {[%clk 0:00:23.6]} 31. Kg3 {[%clk 0:00:11.5]} 31... Rd6 {[%clk
0:00:09.9]} 32. Nxg6+ {[%clk 0:00:10.9]} 32... Qxg6 {[%clk 0:00:09.5]} 33. Qc8+
{[%clk 0:00:08.8]} 33... Qe8 {[%clk 0:00:07.2]} 34. Qxe8+ {[%clk 0:00:07.8]}
34... Kxe8 {[%clk 0:00:08.1]} 35. exd6 {[%clk 0:00:08.2]} 35... Bxd6+ {[%clk
0:00:09]} 36. Kf3 {[%clk 0:00:08.5]} 36... Ke7 {[%clk 0:00:09.3]} 37. Rd1 {[%clk
0:00:09.1]} 37... Ke6 {[%clk 0:00:09.4]} 38. Ke4 {[%clk 0:00:09.4]} 38... Be7
{[%clk 0:00:09.4]} 39. f4 {[%clk 0:00:09.8]} 39... Bd6 {[%clk 0:00:10.3]} 40.
f5+ {[%clk 0:00:09.8]} 40... Kd7 {[%clk 0:00:11.2]} 41. Kd5 {[%clk 0:00:09.2]}
41... Be7 {[%clk 0:00:11]} 42. e4 {[%clk 0:00:09.4]} 42... Kc7 {[%clk
0:00:11.9]} 43. e5 {[%clk 0:00:09.8]} 43... Kd7 {[%clk 0:00:12.4]} 44. f6 {[%clk
0:00:10.5]} 44... Ke8 {[%clk 0:00:13.3]} 45. fxe7 {[%clk 0:00:09.5]} 45... Kxe7
{[%clk 0:00:14.2]} 46. e6 {[%clk 0:00:09.3]} 46... Ke8 {[%clk 0:00:14.5]} 47.
Rf1 {[%clk 0:00:10]} 47... Ke7 {[%clk 0:00:15.4]} 48. Rf7+ {[%clk 0:00:10.1]}
48... Kd8 {[%clk 0:00:16.3]} 49. Ra7 {[%clk 0:00:10.1]} 49... Kc8 {[%clk
0:00:17.2]} 50. Rxa6 {[%clk 0:00:10.4]} 50... Kb8 {[%clk 0:00:18.1]} 51. Rb6+
{[%clk 0:00:10.8]} 51... Ka7 {[%clk 0:00:18.3]} 52. Rxb5 {[%clk 0:00:11.7]}
52... Ka6 {[%clk 0:00:18.6]} 53. a4 {[%clk 0:00:12.1]} 53... Ka7 {[%clk
0:00:19.5]} 54. e7 {[%clk 0:00:12.3]} 54... Ka8 {[%clk 0:00:20.4]} 55. e8=Q+
{[%clk 0:00:12]} 55... Ka7 {[%clk 0:00:21.3]} 56. Qd7+ {[%clk 0:00:12]} 56...
Ka6 {[%clk 0:00:21.7]} 57. Qb7# {[%clk 0:00:09.8]} 1-0

[Event "*** Titled Tuesday Blitz"]
[Site "Chess.com"]
[Date "2021.04.06"]
[Round "5"]
[White "Kapibara_Warri0r"]
[Black "shaheus"]
[Result "1-0"]
[WhiteElo "2253"]
[BlackElo "2376"]
[TimeControl "180+1"]
[EndTime "10:58:01 PDT"]
[Termination "Kapibara_Warri0r won on time"]

1. d4 {[%clk 0:03:00.9]} 1... Nf6 {[%clk 0:02:59.4]} 2. Bf4 {[%clk 0:03:00.3]}
2... g6 {[%clk 0:02:59.3]} 3. c3 {[%clk 0:03:00.6]} 3... Bg7 {[%clk 0:02:59.3]}
4. h3 {[%clk 0:03:01]} 4... O-O {[%clk 0:02:57.5]} 5. Nf3 {[%clk 0:02:59.2]}
5... d6 {[%clk 0:02:57.6]} 6. e3 {[%clk 0:02:58.9]} 6... b6 {[%clk 0:02:57.6]}
7. Bh2 {[%clk 0:02:59.3]} 7... c5 {[%clk 0:02:56.2]} 8. Nbd2 {[%clk 0:02:56.1]}
8... Ba6 {[%clk 0:02:55.7]} 9. Bxa6 {[%clk 0:02:53.3]} 9... Nxa6 {[%clk
0:02:55.8]} 10. O-O {[%clk 0:02:54.2]} 10... Nc7 {[%clk 0:02:55.3]} 11. e4
{[%clk 0:02:53.1]} 11... Nd7 {[%clk 0:02:53.6]} 12. Re1 {[%clk 0:02:51.2]} 12...
Re8 {[%clk 0:02:43.7]} 13. Nc4 {[%clk 0:02:42.8]} 13... Ne6 {[%clk 0:02:33.8]}
14. Ne3 {[%clk 0:02:30.1]} 14... Rc8 {[%clk 0:02:28.5]} 15. Nd5 {[%clk 0:02:29]}
15... Nc7 {[%clk 0:02:24.9]} 16. dxc5 {[%clk 0:02:08]} 16... Nxc5 {[%clk
0:02:20.1]} 17. Nb4 {[%clk 0:02:03.4]} 17... Qd7 {[%clk 0:02:14.3]} 18. Nd3
{[%clk 0:01:56.2]} 18... Qb5 {[%clk 0:02:05.6]} 19. Nxc5 {[%clk 0:01:49.3]}
19... bxc5 {[%clk 0:02:05.3]} 20. Qc2 {[%clk 0:01:44.4]} 20... Ne6 {[%clk
0:01:59.6]} 21. e5 {[%clk 0:01:43.1]} 21... d5 {[%clk 0:01:58.1]} 22. Rad1
{[%clk 0:01:22.3]} 22... Red8 {[%clk 0:01:57.4]} 23. Nh4 {[%clk 0:00:56.9]}
23... d4 {[%clk 0:01:55.6]} 24. c4 {[%clk 0:00:55.9]} 24... Qc6 {[%clk
0:01:31.7]} 25. Rd3 {[%clk 0:00:36.9]} 25... a5 {[%clk 0:01:30.6]} 26. b3 {[%clk
0:00:36]} 26... a4 {[%clk 0:01:22.8]} 27. f4 {[%clk 0:00:32.8]} 27... axb3
{[%clk 0:01:17.9]} 28. axb3 {[%clk 0:00:32.7]} 28... Nc7 {[%clk 0:01:10.3]} 29.
f5 {[%clk 0:00:31.4]} 29... Na6 {[%clk 0:01:04.6]} 30. Rg3 {[%clk 0:00:23.3]}
30... Nb4 {[%clk 0:01:00.8]} 31. Qd2 {[%clk 0:00:23.4]} 31... e6 {[%clk
0:00:48.6]} 32. f6 {[%clk 0:00:19.4]} 32... Bf8 {[%clk 0:00:46.4]} 33. Qg5
{[%clk 0:00:15.8]} 33... Qe8 {[%clk 0:00:39.6]} 34. Re4 {[%clk 0:00:11.8]} 34...
d3 {[%clk 0:00:37.6]} 35. Re1 {[%clk 0:00:11.1]} 35... Rd4 {[%clk 0:00:18.9]}
36. Rd1 {[%clk 0:00:11]} 36... Rcd8 {[%clk 0:00:18]} 37. Nf3 {[%clk 0:00:10.8]}
37... R4d7 {[%clk 0:00:14.8]} 38. Rg4 {[%clk 0:00:11.2]} 38... Ra8 {[%clk
0:00:11.2]} 39. Rh4 {[%clk 0:00:11]} 39... h6 {[%clk 0:00:08.5]} 40. Rxh6 {[%clk
0:00:10.8]} 40... Bxh6 {[%clk 0:00:08.3]} 41. Qxh6 {[%clk 0:00:11.7]} 41... Qf8
{[%clk 0:00:08.8]} 42. Qh4 {[%clk 0:00:11.5]} 42... d2 {[%clk 0:00:05.5]} 43.
Ng5 {[%clk 0:00:11.7]} 1-0

[Event "*** Titled Tuesday Blitz"]
[Site "Chess.com"]
[Date "2021.04.06"]
[Round "5"]
[White "Isajevsky_Anton"]
[Black "GoltsevDmitry2000"]
[Result "0-1"]
[WhiteElo "2560"]
[BlackElo "2742"]
[TimeControl "180+1"]
[EndTime "10:58:02 PDT"]
[Termination "GoltsevDmitry2000 won on time"]

1. c4 {[%clk 0:02:59.7]} 1... Nf6 {[%clk 0:02:56.8]} 2. Nc3 {[%clk 0:02:58.8]}
2... e5 {[%clk 0:02:55.1]} 3. Nf3 {[%clk 0:02:56.9]} 3... Nc6 {[%clk 0:02:55.1]}
4. e3 {[%clk 0:02:54.8]} 4... d5 {[%clk 0:02:53.6]} 5. cxd5 {[%clk 0:02:54.9]}
5... Nxd5 {[%clk 0:02:54.5]} 6. Bb5 {[%clk 0:02:55.4]} 6... Nxc3 {[%clk
0:02:53]} 7. bxc3 {[%clk 0:02:55.6]} 7... Bd6 {[%clk 0:02:50.2]} 8. d4 {[%clk
0:02:50]} 8... exd4 {[%clk 0:02:45.8]} 9. cxd4 {[%clk 0:02:45.2]} 9... Bd7
{[%clk 0:02:44.4]} 10. O-O {[%clk 0:02:44.8]} 10... a6 {[%clk 0:02:40.5]} 11.
Be2 {[%clk 0:02:39.3]} 11... O-O {[%clk 0:02:39.3]} 12. h3 {[%clk 0:02:19]}
12... Re8 {[%clk 0:02:38.8]} 13. Bb2 {[%clk 0:02:18.2]} 13... Ne7 {[%clk
0:02:34.1]} 14. e4 {[%clk 0:02:14.5]} 14... Ng6 {[%clk 0:02:33]} 15. e5 {[%clk
0:02:09.5]} 15... Nf4 {[%clk 0:02:32.1]} 16. Bc4 {[%clk 0:02:03.6]} 16... Bf8
{[%clk 0:02:31.7]} 17. Qd2 {[%clk 0:01:57.9]} 17... Ne6 {[%clk 0:02:18.8]} 18.
d5 {[%clk 0:01:56.1]} 18... Nc5 {[%clk 0:02:18.2]} 19. Rfe1 {[%clk 0:01:54.5]}
19... b5 {[%clk 0:02:15.5]} 20. Bf1 {[%clk 0:01:51.7]} 20... Na4 {[%clk
0:02:10.3]} 21. Rad1 {[%clk 0:01:41]} 21... Bf5 {[%clk 0:02:07]} 22. Ba1 {[%clk
0:01:38.4]} 22... Bc5 {[%clk 0:02:04.2]} 23. Qf4 {[%clk 0:01:24.3]} 23... Bg6
{[%clk 0:02:00]} 24. e6 {[%clk 0:01:06.8]} 24... Bd6 {[%clk 0:01:43.2]} 25. Qg4
{[%clk 0:00:58.9]} 25... f5 {[%clk 0:01:34.8]} 26. Qd4 {[%clk 0:00:58.5]} 26...
Qe7 {[%clk 0:01:31.9]} 27. Ne5 {[%clk 0:00:57.8]} 27... Bh5 {[%clk 0:01:27.5]}
28. Nc6 {[%clk 0:00:56]} 28... Qg5 {[%clk 0:01:25.1]} 29. Rc1 {[%clk 0:00:28.2]}
29... f4 {[%clk 0:01:12.8]} 30. h4 {[%clk 0:00:19.9]} 30... Qh6 {[%clk
0:01:09.6]} 31. Bd3 {[%clk 0:00:15.3]} 31... Rf8 {[%clk 0:00:54.6]} 32. e7
{[%clk 0:00:14.6]} 32... Rfe8 {[%clk 0:00:48.9]} 33. Re6 {[%clk 0:00:15.2]}
33... Bg6 {[%clk 0:00:47]} 34. h5 {[%clk 0:00:12]} 34... f3 {[%clk 0:00:43.4]}
35. Rce1 {[%clk 0:00:07.6]} 35... fxg2 {[%clk 0:00:39.8]} 36. Kxg2 {[%clk
0:00:06.5]} 36... Qg5+ {[%clk 0:00:37.2]} 37. Kf1 {[%clk 0:00:04.2]} 37... Bxh5
{[%clk 0:00:30.4]} 38. R1e3 {[%clk 0:00:02.2]} 38... Bc5 {[%clk 0:00:29]} 39.
Qe4 {[%clk 0:00:02.4]} 39... Bg6 {[%clk 0:00:22.9]} 40. Qf3 {[%clk 0:00:02.5]}
40... Bxe3 {[%clk 0:00:20.4]} 41. Rxe3 {[%clk 0:00:01.8]} 41... Bxd3+ {[%clk
0:00:18.3]} 42. Rxd3 {[%clk 0:00:02.3]} 42... Nc5 {[%clk 0:00:18.5]} 43. Rd4
{[%clk 0:00:02.3]} 43... Nd7 {[%clk 0:00:17.8]} 0-1